[Event "FIDE Grand Swiss 2023"]
[Site "Villa Marina, Douglas, Isle of Man"]
[Date "2023.10.27"]
[Round "3.51"]
[White "Sargsyan, Shant"]
[Black "Wu, Li"]
[Result "1-0"]
[WhiteElo "2631"]
[BlackElo "2303"]
[EventDate "2023.10.25"]
[ECO "C42"]
[PlyCount "49"]
[BlackFideId "411086"]
[TimeControl "40/100 + 20/50 + 15 + 30s/move"]
[WhiteFideId "13306766"]

1.e4 {[%clk 01:40:00] [%emt 00:00:58]} 1...e5 {[%clk 01:40:17] [%emt 00:00:44]} 
2.Nf3 {[%clk 01:40:02] [%emt 00:00:28]} 2...Nf6 {[%clk 01:40:30] [%emt
00:00:17]} 3.Nxe5 {[%clk 01:39:15] [%emt 00:01:17]} 3...d6 {[%clk 01:40:56]
[%emt 00:00:05]} 4.Nf3 {[%clk 01:39:29] [%emt 00:00:15]} 4...Nxe4 {[%clk
01:41:20] [%emt 00:00:06]} 5.d4 {[%clk 01:39:30] [%emt 00:00:29]} 5...d5 {[%clk
01:41:38] [%emt 00:00:12]} 6.Bd3 {[%clk 01:39:50] [%emt 00:00:09]} 6...Bf5 
{[%clk 01:41:08] [%emt 00:01:01]} 7.O-O {[%clk 01:38:42] [%emt 00:01:37]} 
7...Be7 {[%clk 01:41:19] [%emt 00:00:21]} 8.Re1 {[%clk 01:37:44] [%emt
00:01:27]} 8...O-O {[%clk 01:41:42] [%emt 00:00:07]} 9.Nbd2 {[%clk 01:36:38]
[%emt 00:01:36]} 9...Nd6 {[%clk 01:40:23] [%emt 00:01:49]} 10.Nf1 {[%clk
01:36:41] [%emt 00:00:27]} 10...Bxd3 {[%clk 01:38:55] [%emt 00:01:58]} 11.Qxd3 
{[%clk 01:37:03] [%emt 00:00:08]} 11...c6 {[%clk 01:37:13] [%emt 00:02:13]} 
12.Bf4 {[%clk 01:35:48] [%emt 00:01:44]} 12...Na6 {[%clk 01:34:28] [%emt
00:03:16]} 13.h4 {[%clk 01:34:53] [%emt 00:01:24]} 13...Nc7 {[%clk 01:31:36]
[%emt 00:03:23]} 14.Ng5 {[%clk 01:34:48] [%emt 00:00:35]} 14...Bxg5 {[%clk
01:28:22] [%emt 00:03:44]} 15.Bxg5 {[%clk 01:34:32] [%emt 00:00:45]} 15...f6 
{[%clk 01:28:42] [%emt 00:00:10]} 16.Bf4 {[%clk 01:34:26] [%emt 00:00:36]} 
16...Qd7 {[%clk 01:26:25] [%emt 00:02:47]} 17.Ng3 {[%clk 01:29:29] [%emt
00:05:26]} 17...Rae8 {[%clk 01:18:16] [%emt 00:08:40]} 18.Bxd6 {[%clk 01:16:56]
[%emt 00:13:03]} 18...Qxd6 {[%clk 01:18:22] [%emt 00:00:24]} 19.Nf5 {[%clk
01:17:17] [%emt 00:00:09]} 19...Qd7 {[%clk 01:18:17] [%emt 00:00:35]} 20.Qh3 
{[%clk 01:17:12] [%emt 00:00:35]} 20...Re6 {[%clk 01:03:19] [%emt 00:15:28]} 
21.h5 {[%clk 01:09:59] [%emt 00:07:44]} 21...Rfe8 {[%clk 00:50:10] [%emt
00:13:39]} 22.Re3 {[%clk 01:06:51] [%emt 00:03:37]} 22...Qd8 {[%clk 00:38:48]
[%emt 00:11:52]} 23.Qg4 {[%clk 00:59:43] [%emt 00:07:38]} 23...Qd7 {[%clk
00:35:45] [%emt 00:03:33]} 24.Rg3 {[%clk 00:58:06] [%emt 00:02:07]} 24...Re1+ 
{[%clk 00:29:44] [%emt 00:06:31]} 25.Kh2 {[%clk 00:57:52] [%emt 00:00:44]} 1-0

[Event "FIDE Grand Swiss 2023"]
[Site "Villa Marina, Douglas, Isle of Man"]
[Date "2023.10.27"]
[Round "3.52"]
[White "Dardha, Daniel"]
[Black "Henriquez Villagra, Cristobal"]
[Result "1-0"]
[WhiteElo "2580"]
[BlackElo "2630"]
[EventDate "2023.10.25"]
[ECO "D35"]
[PlyCount "49"]
[BlackFideId "3409350"]
[TimeControl "40/100 + 20/50 + 15 + 30s/move"]
[WhiteFideId "240990"]

1.d4 {[%clk 01:40:55] [%emt 00:00:05]} 1...d5 {[%clk 01:40:44] [%emt 00:00:17]} 
2.c4 {[%clk 01:41:13] [%emt 00:00:11]} 2...e6 {[%clk 01:41:09] [%emt 00:00:06]} 
3.Nc3 {[%clk 01:41:34] [%emt 00:00:09]} 3...Nf6 {[%clk 01:41:34] [%emt
00:00:05]} 4.cxd5 {[%clk 01:41:54] [%emt 00:00:11]} 4...exd5 {[%clk 01:41:58]
[%emt 00:00:05]} 5.Bg5 {[%clk 01:42:18] [%emt 00:00:07]} 5...c6 {[%clk 01:42:09]
[%emt 00:00:19]} 6.e3 {[%clk 01:42:30] [%emt 00:00:17]} 6...h6 {[%clk 01:42:32]
[%emt 00:00:08]} 7.Bh4 {[%clk 01:42:13] [%emt 00:00:46]} 7...Be7 {[%clk
01:42:53] [%emt 00:00:09]} 8.Bd3 {[%clk 01:42:04] [%emt 00:00:39]} 8...O-O 
{[%clk 01:42:59] [%emt 00:00:23]} 9.Qc2 {[%clk 01:40:08] [%emt 00:02:27]} 
9...Re8 {[%clk 01:41:52] [%emt 00:01:37]} 10.Nf3 {[%clk 01:39:20] [%emt
00:01:18]} 10...Ne4 {[%clk 01:37:41] [%emt 00:04:41]} 11.Bxe7 {[%clk 01:36:10]
[%emt 00:03:41]} 11...Qxe7 {[%clk 01:38:05] [%emt 00:00:05]} 12.O-O {[%clk
01:34:08] [%emt 00:02:32]} 12...Nd7 {[%clk 01:29:24] [%emt 00:09:11]} 13.Rae1 
{[%clk 01:30:24] [%emt 00:04:14]} 13...a5 {[%clk 01:14:18] [%emt 00:15:36]} 
14.Nd2 {[%clk 01:23:59] [%emt 00:06:56]} 14...Ndf6 {[%clk 01:12:38] [%emt
00:02:10]} 15.f3 {[%clk 01:20:25] [%emt 00:04:04]} 15...Ng5 {[%clk 01:11:31]
[%emt 00:01:36]} 16.f4 {[%clk 01:11:43] [%emt 00:09:12]} 16...Ne6 {[%clk
01:05:16] [%emt 00:06:45]} 17.Nf3 {[%clk 01:09:35] [%emt 00:02:38]} 17...c5 
{[%clk 01:01:04] [%emt 00:04:43]} 18.f5 {[%clk 00:59:33] [%emt 00:10:32]} 
18...Nf8 {[%clk 00:56:59] [%emt 00:04:35]} 19.e4 {[%clk 00:57:05] [%emt
00:02:57]} 19...cxd4 {[%clk 00:36:19] [%emt 00:21:10]} 20.Nxd5 {[%clk 00:56:16]
[%emt 00:01:19]} 20...Nxd5 {[%clk 00:36:32] [%emt 00:00:18]} 21.exd5 {[%clk
00:56:38] [%emt 00:00:08]} 21...Qd8 {[%clk 00:36:33] [%emt 00:00:28]} 22.Qc5 
{[%clk 00:47:07] [%emt 00:10:01]} 22...Rxe1 {[%clk 00:30:06] [%emt 00:06:57]} 
23.Rxe1 {[%clk 00:47:27] [%emt 00:00:10]} 23...b6 {[%clk 00:30:12] [%emt
00:00:25]} 24.Qe7 {[%clk 00:42:35] [%emt 00:05:21]} 24...Bd7 {[%clk 00:26:12]
[%emt 00:04:30]} 25.d6 {[%clk 00:38:31] [%emt 00:04:34]} 1-0

[Event "FIDE Grand Swiss 2023"]
[Site "Villa Marina, Douglas, Isle of Man"]
[Date "2023.10.27"]
[Round "3.53"]
[White "Gurel, Ediz"]
[Black "Kuzubov, Yuriy"]
[Result "0-1"]
[WhiteElo "2514"]
[BlackElo "2625"]
[EventDate "2023.10.25"]
[ECO "B19"]
[PlyCount "74"]
[BlackFideId "14112906"]
[TimeControl "40/100 + 20/50 + 15 + 30s/move"]
[WhiteFideId "44507356"]

1.e4 {[%clk 01:40:56] [%emt 00:00:05]} 1...c6 {[%clk 01:40:52] [%emt 00:00:08]} 
2.d4 {[%clk 01:41:07] [%emt 00:00:19]} 2...d5 {[%clk 01:41:15] [%emt 00:00:06]} 
3.Nd2 {[%clk 01:41:21] [%emt 00:00:17]} 3...dxe4 {[%clk 01:41:35] [%emt
00:00:09]} 4.Nxe4 {[%clk 01:41:47] [%emt 00:00:05]} 4...Bf5 {[%clk 01:41:58]
[%emt 00:00:05]} 5.Ng3 {[%clk 01:41:55] [%emt 00:00:23]} 5...Bg6 {[%clk
01:42:21] [%emt 00:00:07]} 6.h4 {[%clk 01:41:25] [%emt 00:01:01]} 6...h6 {[%clk
01:42:43] [%emt 00:00:07]} 7.Nf3 {[%clk 01:41:44] [%emt 00:00:11]} 7...Nd7 
{[%clk 01:42:39] [%emt 00:00:34]} 8.h5 {[%clk 01:41:57] [%emt 00:00:18]} 
8...Bh7 {[%clk 01:43:02] [%emt 00:00:07]} 9.Bd3 {[%clk 01:42:11] [%emt
00:00:16]} 9...Bxd3 {[%clk 01:43:23] [%emt 00:00:08]} 10.Qxd3 {[%clk 01:42:38]
[%emt 00:00:04]} 10...e6 {[%clk 01:43:41] [%emt 00:00:11]} 11.Bd2 {[%clk
01:42:26] [%emt 00:00:43]} 11...Ngf6 {[%clk 01:43:18] [%emt 00:00:53]} 12.O-O-O 
{[%clk 01:42:49] [%emt 00:00:07]} 12...Qc7 {[%clk 01:43:09] [%emt 00:00:38]} 
13.Qe2 {[%clk 01:33:04] [%emt 00:10:15]} 13...Bd6 {[%clk 01:23:25] [%emt
00:20:14]} 14.Nf5 {[%clk 01:26:30] [%emt 00:07:04]} 14...Bf4 {[%clk 01:21:50]
[%emt 00:02:05]} 15.Ne3 {[%clk 01:16:34] [%emt 00:10:27]} 15...Bxe3 {[%clk
01:14:48] [%emt 00:07:30]} 16.Bxe3 {[%clk 01:15:56] [%emt 00:01:09]} 16...Qa5 
{[%clk 01:01:00] [%emt 00:14:18]} 17.Kb1 {[%clk 01:08:47] [%emt 00:07:40]} 
17...O-O-O {[%clk 00:45:53] [%emt 00:15:36]} 18.Bf4 {[%clk 00:58:42] [%emt
00:10:35]} 18...Qb5 {[%clk 00:44:04] [%emt 00:02:18]} 19.Qe1 {[%clk 00:45:35]
[%emt 00:13:38]} 19...Nxh5 {[%clk 00:41:31] [%emt 00:03:02]} 20.Bh2 {[%clk
00:45:16] [%emt 00:00:49]} 20...Nhf6 {[%clk 00:38:38] [%emt 00:03:24]} 21.Rd3 
{[%clk 00:44:31] [%emt 00:01:15]} 21...b6 {[%clk 00:34:09] [%emt 00:04:59]} 
22.d5 {[%clk 00:27:51] [%emt 00:17:11]} 22...cxd5 {[%clk 00:09:01] [%emt
00:25:38]} 23.Nd4 {[%clk 00:24:23] [%emt 00:03:57]} 23...Qa4 {[%clk 00:08:29]
[%emt 00:01:03]} 24.Rc3+ {[%clk 00:13:42] [%emt 00:11:12]} 24...Nc5 {[%clk
00:08:26] [%emt 00:00:31]} 25.Qe5 {[%clk 00:09:59] [%emt 00:04:13]} 25...Kb7 
{[%clk 00:07:58] [%emt 00:00:58]} 26.Ra3 {[%clk 00:09:23] [%emt 00:01:07]} 
26...Qd7 {[%clk 00:08:01] [%emt 00:00:26]} 27.Qe2 {[%clk 00:09:50] [%emt
00:00:04]} 27...e5 {[%clk 00:03:23] [%emt 00:05:07]} 28.Bxe5 {[%clk 00:08:06]
[%emt 00:02:14]} 28...Rhe8 {[%clk 00:03:39] [%emt 00:00:14]} 29.b4 {[%clk
00:05:45] [%emt 00:02:52]} 29...Na4 {[%clk 00:03:20] [%emt 00:00:49]} 30.b5 
{[%clk 00:04:28] [%emt 00:01:48]} 30...Ne4 {[%clk 00:03:17] [%emt 00:00:32]} 
31.Ka1 {[%clk 00:04:34] [%emt 00:00:24]} 31...Nec3 {[%clk 00:01:15] [%emt
00:02:31]} 32.Qh5 {[%clk 00:02:03] [%emt 00:03:02]} 32...g6 {[%clk 00:01:02]
[%emt 00:00:42]} 33.Qh4 {[%clk 00:00:36] [%emt 00:01:58]} 33...Rxe5 {[%clk
00:01:09] [%emt 00:00:23]} 34.Nc6 {[%clk 00:01:05] [%emt 00:00:01]} 34...Rh5 
{[%clk 00:01:14] [%emt 00:00:24]} 35.Rxa4 {[%clk 00:00:45] [%emt 00:00:51]} 
35...Nxa4 {[%clk 00:01:33] [%emt 00:00:11]} 36.Qxa4 {[%clk 00:00:48] [%emt
00:00:27]} 36...Rxh1+ {[%clk 00:01:58] [%emt 00:00:04]} 37.Kb2 {[%clk 00:01:16]
[%emt 00:00:02]} 37...a5 {[%clk 00:01:59] [%emt 00:00:28]} 0-1

[Event "FIDE Grand Swiss 2023"]
[Site "Villa Marina, Douglas, Isle of Man"]
[Date "2023.10.27"]
[Round "3.54"]
[White "Greenfeld, Alon"]
[Black "Gupta, Abhijeet"]
[Result "1/2-1/2"]
[WhiteElo "2455"]
[BlackElo "2609"]
[EventDate "2023.10.25"]
[ECO "E67"]
[PlyCount "93"]
[BlackFideId "5010608"]
[TimeControl "40/100 + 20/50 + 15 + 30s/move"]
[WhiteFideId "2800039"]

1.Nf3 {[%clk 01:38:42] [%emt 00:02:07]} 1...Nf6 {[%clk 01:40:50] [%emt
00:00:20]} 2.c4 {[%clk 01:37:45] [%emt 00:01:27]} 2...g6 {[%clk 01:41:09] [%emt
00:00:11]} 3.Nc3 {[%clk 01:36:22] [%emt 00:01:53]} 3...Bg7 {[%clk 01:41:31]
[%emt 00:00:08]} 4.g3 {[%clk 01:36:13] [%emt 00:00:38]} 4...O-O {[%clk 01:41:33]
[%emt 00:00:29]} 5.Bg2 {[%clk 01:36:31] [%emt 00:00:12]} 5...d6 {[%clk 01:41:06]
[%emt 00:00:57]} 6.d4 {[%clk 01:34:51] [%emt 00:02:08]} 6...Nbd7 {[%clk
01:41:24] [%emt 00:00:14]} 7.O-O {[%clk 01:33:56] [%emt 00:01:25]} 7...e5 
{[%clk 01:41:42] [%emt 00:00:11]} 8.e4 {[%clk 01:32:48] [%emt 00:01:39]} 
8...exd4 {[%clk 01:41:52] [%emt 00:00:20]} 9.Nxd4 {[%clk 01:33:11] [%emt
00:00:07]} 9...Re8 {[%clk 01:42:12] [%emt 00:00:10]} 10.h3 {[%clk 01:31:56]
[%emt 00:01:45]} 10...Nc5 {[%clk 01:41:36] [%emt 00:01:07]} 11.Re1 {[%clk
01:32:11] [%emt 00:00:15]} 11...h6 {[%clk 01:41:05] [%emt 00:01:01]} 12.Nb3 
{[%clk 01:24:33] [%emt 00:08:07]} 12...Ne6 {[%clk 01:38:00] [%emt 00:03:35]} 
13.Qc2 {[%clk 00:55:34] [%emt 00:29:29]} 13...Ng5 {[%clk 00:56:38] [%emt
00:41:51]} 14.Kh2 {[%clk 00:54:56] [%emt 00:01:08]} 14...Qd7 {[%clk 00:50:03]
[%emt 00:07:06]} 15.Bxg5 {[%clk 00:43:50] [%emt 00:11:36]} 15...hxg5 {[%clk
00:50:30] [%emt 00:00:04]} 16.Rad1 {[%clk 00:44:05] [%emt 00:00:13]} 16...g4 
{[%clk 00:49:16] [%emt 00:01:45]} 17.h4 {[%clk 00:41:36] [%emt 00:02:58]} 
17...Qe7 {[%clk 00:49:22] [%emt 00:00:25]} 18.c5 {[%clk 00:40:09] [%emt
00:01:57]} 18...dxc5 {[%clk 00:43:48] [%emt 00:06:04]} 19.e5 {[%clk 00:38:12]
[%emt 00:02:27]} 19...Bf5 {[%clk 00:43:51] [%emt 00:00:28]} 20.exf6 {[%clk
00:29:36] [%emt 00:09:06]} 20...Qxe1 {[%clk 00:42:44] [%emt 00:01:37]} 21.Qc1 
{[%clk 00:26:55] [%emt 00:03:10]} 21...Qxf2 {[%clk 00:42:54] [%emt 00:00:21]} 
22.Rd2 {[%clk 00:19:29] [%emt 00:07:55]} 22...Qe1 {[%clk 00:41:48] [%emt
00:01:37]} 23.Qxe1 {[%clk 00:18:15] [%emt 00:01:44]} 23...Rxe1 {[%clk 00:42:02]
[%emt 00:00:15]} 24.fxg7 {[%clk 00:18:42] [%emt 00:00:03]} 24...Kxg7 {[%clk
00:34:37] [%emt 00:07:55]} 25.Bxb7 {[%clk 00:15:59] [%emt 00:03:14]} 25...Rh8 
{[%clk 00:31:21] [%emt 00:03:45]} 26.Kg2 {[%clk 00:15:20] [%emt 00:01:09]} 
26...c4 {[%clk 00:30:37] [%emt 00:01:13]} 27.Kf2 {[%clk 00:15:01] [%emt
00:00:48]} 27...Re5 {[%clk 00:30:02] [%emt 00:01:06]} 28.Nc1 {[%clk 00:13:09]
[%emt 00:02:23]} 28...g5 {[%clk 00:30:18] [%emt 00:00:15]} 29.hxg5 {[%clk
00:12:34] [%emt 00:01:04]} 29...Re6 {[%clk 00:18:04] [%emt 00:12:44]} 30.N1e2 
{[%clk 00:10:13] [%emt 00:02:51]} 30...Rb8 {[%clk 00:16:41] [%emt 00:01:54]} 
31.Nd4 {[%clk 00:08:02] [%emt 00:02:41]} 31...Rxb7 {[%clk 00:16:41] [%emt
00:00:29]} 32.Nxf5+ {[%clk 00:08:26] [%emt 00:00:06]} 32...Kg6 {[%clk 00:17:08]
[%emt 00:00:03]} 33.Ne3 {[%clk 00:08:25] [%emt 00:00:30]} 33...Kxg5 {[%clk
00:15:44] [%emt 00:01:55]} 34.Rd5+ {[%clk 00:06:45] [%emt 00:02:10]} 34...f5 
{[%clk 00:13:12] [%emt 00:03:03]} 35.Rxf5+ {[%clk 00:05:50] [%emt 00:01:24]} 
35...Kg6 {[%clk 00:13:38] [%emt 00:00:04]} 36.Ncd1 {[%clk 00:05:44] [%emt
00:00:35]} 36...c3 {[%clk 00:12:15] [%emt 00:01:53]} 37.bxc3 {[%clk 00:05:16]
[%emt 00:00:59]} 37...Ra6 {[%clk 00:12:43] [%emt 00:00:02]} 38.Rf4 {[%clk
00:03:35] [%emt 00:02:09]} 38...Rxa2+ {[%clk 00:13:10] [%emt 00:00:04]} 39.Ke1 
{[%clk 00:03:33] [%emt 00:00:31]} 39...a5 {[%clk 00:13:06] [%emt 00:00:35]} 
40.Rxg4+ {[%clk 00:02:18] [%emt 00:01:44]} 40...Kf6 {[%clk 00:11:35] [%emt
00:02:02]} 41.Rf4+ {[%clk 00:49:22] [%emt 00:03:27]} 41...Ke5 {[%clk 01:01:25]
[%emt 00:00:39]} 42.Nc4+ {[%clk 00:41:02] [%emt 00:08:50]} 42...Ke6 {[%clk
01:01:26] [%emt 00:00:28]} 43.Ncb2 {[%clk 00:40:21] [%emt 00:01:12]} 43...Raxb2 
{[%clk 00:55:31] [%emt 00:06:25]} 44.Nxb2 {[%clk 00:40:39] [%emt 00:00:11]} 
44...Rxb2 {[%clk 00:55:58] [%emt 00:00:04]} 45.Ra4 {[%clk 00:40:59] [%emt
00:00:09]} 45...Kd5 {[%clk 00:56:12] [%emt 00:00:17]} 46.Rxa5+ {[%clk 00:37:19]
[%emt 00:04:10]} 46...Kc4 {[%clk 00:56:37] [%emt 00:00:04]} 47.Rf5 {[%clk
00:36:31] [%emt 00:01:18]} 1/2-1/2

[Event "FIDE Grand Swiss 2023"]
[Site "Villa Marina, Douglas, Isle of Man"]
[Date "2023.10.27"]
[Round "3.55"]
[White "Bachmann, Axel"]
[Black "Fawzy, Adham"]
[Result "1/2-1/2"]
[WhiteElo "2604"]
[BlackElo "2535"]
[EventDate "2023.10.25"]
[ECO "D97"]
[PlyCount "34"]
[BlackFideId "10613129"]
[TimeControl "40/100 + 20/50 + 15 + 30s/move"]
[WhiteFideId "3700488"]

1.c4 {[%clk 01:40:56] [%emt 00:00:03]} 1...Nf6 {[%clk 01:40:19] [%emt 00:00:41]} 
2.Nf3 {[%clk 01:39:42] [%emt 00:01:45]} 2...g6 {[%clk 01:40:24] [%emt 00:00:25]} 
3.Nc3 {[%clk 01:39:18] [%emt 00:00:53]} 3...d5 {[%clk 01:40:34] [%emt 00:00:22]} 
4.d4 {[%clk 01:34:21] [%emt 00:05:26]} 4...Bg7 {[%clk 01:40:53] [%emt 00:00:11]} 
5.Qb3 {[%clk 01:27:26] [%emt 00:07:25]} 5...dxc4 {[%clk 01:40:46] [%emt
00:00:37]} 6.Qxc4 {[%clk 01:27:52] [%emt 00:00:04]} 6...O-O {[%clk 01:40:56]
[%emt 00:00:19]} 7.e4 {[%clk 01:28:19] [%emt 00:00:04]} 7...a6 {[%clk 01:41:21]
[%emt 00:00:06]} 8.e5 {[%clk 01:27:51] [%emt 00:00:58]} 8...b5 {[%clk 01:38:09]
[%emt 00:03:41]} 9.Qb3 {[%clk 01:27:38] [%emt 00:00:43]} 9...Nfd7 {[%clk
01:38:32] [%emt 00:00:07]} 10.Be3 {[%clk 01:24:49] [%emt 00:03:20]} 10...c5 
{[%clk 01:31:52] [%emt 00:07:09]} 11.dxc5 {[%clk 01:09:50] [%emt 00:15:29]} 
11...Nxe5 {[%clk 01:26:07] [%emt 00:06:15]} 12.Nxe5 {[%clk 01:08:20] [%emt
00:02:00]} 12...Bxe5 {[%clk 01:26:34] [%emt 00:00:03]} 13.Be2 {[%clk 01:03:25]
[%emt 00:05:25]} 13...Be6 {[%clk 01:24:01] [%emt 00:03:03]} 14.Qc2 {[%clk
01:03:50] [%emt 00:00:05]} 14...Bf5 {[%clk 01:23:30] [%emt 00:01:01]} 15.Qb3 
{[%clk 01:03:47] [%emt 00:00:33]} 15...Be6 {[%clk 01:22:12] [%emt 00:01:48]} 
16.Qc2 {[%clk 01:04:11] [%emt 00:00:05]} 16...Bf5 {[%clk 01:22:34] [%emt
00:00:09]} 17.Qb3 {[%clk 01:03:24] [%emt 00:01:17]} 17...Be6 {[%clk 01:22:57]
[%emt 00:01:11]} 1/2-1/2

[Event "FIDE Grand Swiss 2023"]
[Site "Villa Marina, Douglas, Isle of Man"]
[Date "2023.10.27"]
[Round "3.56"]
[White "Krasenkow, Michal"]
[Black "Wagner, Dennis"]
[Result "1/2-1/2"]
[WhiteElo "2531"]
[BlackElo "2589"]
[EventDate "2023.10.25"]
[ECO "D40"]
[PlyCount "61"]
[BlackFideId "24650684"]
[TimeControl "40/100 + 20/50 + 15 + 30s/move"]
[WhiteFideId "1113100"]

1.Nf3 {[%clk 01:40:56] [%emt 00:00:03]} 1...Nf6 {[%clk 01:40:46] [%emt
00:00:14]} 2.c4 {[%clk 01:41:22] [%emt 00:00:04]} 2...c5 {[%clk 01:41:03] [%emt
00:00:13]} 3.Nc3 {[%clk 01:41:38] [%emt 00:00:14]} 3...Nc6 {[%clk 01:41:00]
[%emt 00:00:32]} 4.e3 {[%clk 01:41:36] [%emt 00:00:32]} 4...e6 {[%clk 01:40:33]
[%emt 00:00:57]} 5.d4 {[%clk 01:41:44] [%emt 00:00:22]} 5...d5 {[%clk 01:40:45]
[%emt 00:00:19]} 6.a3 {[%clk 01:42:09] [%emt 00:00:05]} 6...a6 {[%clk 01:33:13]
[%emt 00:08:02]} 7.dxc5 {[%clk 01:39:46] [%emt 00:02:54]} 7...Bxc5 {[%clk
01:33:37] [%emt 00:00:06]} 8.b4 {[%clk 01:40:13] [%emt 00:00:03]} 8...Bd6 
{[%clk 01:33:51] [%emt 00:00:15]} 9.Bb2 {[%clk 01:40:34] [%emt 00:00:09]} 
9...O-O {[%clk 01:33:11] [%emt 00:01:10]} 10.Qc2 {[%clk 01:36:10] [%emt
00:04:54]} 10...Qe7 {[%clk 01:22:32] [%emt 00:11:10]} 11.Rd1 {[%clk 01:34:25]
[%emt 00:02:14]} 11...Rd8 {[%clk 01:02:36] [%emt 00:20:26]} 12.h3 {[%clk
01:33:45] [%emt 00:01:11]} 12...dxc4 {[%clk 00:54:37] [%emt 00:08:29]} 13.Bxc4 
{[%clk 01:33:25] [%emt 00:00:49]} 13...b5 {[%clk 00:55:00] [%emt 00:00:08]} 
14.Bd3 {[%clk 01:33:41] [%emt 00:00:13]} 14...Ne5 {[%clk 00:54:11] [%emt
00:01:19]} 15.Nxe5 {[%clk 01:33:02] [%emt 00:01:09]} 15...Bxe5 {[%clk 00:54:37]
[%emt 00:00:04]} 16.Ne2 {[%clk 01:30:05] [%emt 00:03:27]} 16...Bxb2 {[%clk
00:53:30] [%emt 00:01:37]} 17.Qxb2 {[%clk 01:30:27] [%emt 00:00:08]} 17...Bb7 
{[%clk 00:52:56] [%emt 00:01:04]} 18.O-O {[%clk 01:30:52] [%emt 00:00:05]} 
18...e5 {[%clk 00:48:36] [%emt 00:04:50]} 19.Ng3 {[%clk 01:27:38] [%emt
00:03:44]} 19...g6 {[%clk 00:46:49] [%emt 00:02:17]} 20.Be2 {[%clk 01:28:01]
[%emt 00:00:06]} 20...h5 {[%clk 00:46:08] [%emt 00:01:11]} 21.Rxd8+ {[%clk
01:27:26] [%emt 00:01:06]} 21...Rxd8 {[%clk 00:46:33] [%emt 00:00:04]} 22.Rd1 
{[%clk 01:27:49] [%emt 00:00:08]} 22...Rxd1+ {[%clk 00:43:34] [%emt 00:03:29]} 
23.Bxd1 {[%clk 01:28:17] [%emt 00:00:01]} 23...Qd6 {[%clk 00:43:48] [%emt
00:00:17]} 24.Be2 {[%clk 01:26:59] [%emt 00:01:48]} 24...h4 {[%clk 00:40:58]
[%emt 00:03:21]} 25.Nf1 {[%clk 01:27:22] [%emt 00:00:06]} 25...Nd7 {[%clk
00:38:07] [%emt 00:03:21]} 26.Nd2 {[%clk 01:23:08] [%emt 00:04:44]} 26...Nb6 
{[%clk 00:36:04] [%emt 00:02:32]} 27.Qc2 {[%clk 01:22:42] [%emt 00:00:55]} 
27...Qc6 {[%clk 00:28:08] [%emt 00:08:28]} 28.Qxc6 {[%clk 01:22:58] [%emt
00:00:14]} 28...Bxc6 {[%clk 00:28:35] [%emt 00:00:03]} 29.e4 {[%clk 01:09:16]
[%emt 00:14:12]} 29...f6 {[%clk 00:27:20] [%emt 00:01:45]} 30.Bd3 {[%clk
01:05:55] [%emt 00:03:51]} 30...Kf7 {[%clk 00:27:09] [%emt 00:00:42]} 31.Kf1 
{[%clk 01:05:15] [%emt 00:01:09]} 1/2-1/2